bitfinex/quotes_BTCUSD_20251117
["timestamp","ask_amount","ask_price","bid_price","bid_amount"]
[1763423245123,0.03258402,92453.0,92420.0,0.03266]
[1763423245322,0.03258402,92453.0,92421.0,0.01298406]
[1763423245727,0.03258402,92453.0,92422.0,0.03266]
[1763423246841,9e-05,92452.0,92422.0,0.03366]
[1763423248091,9e-05,92452.0,92422.0,0.03266]
[1763423248244,0.00025883,92423.0,92422.0,0.03366]
[1763423248672,0.00025883,92423.0,92422.0,0.05581]
[1763423249076,0.00025883,92423.0,92422.0,0.02215]
[1763423249433,0.0003901,92423.0,92422.0,0.02415]
[1763423249734,0.0003901,92423.0,92422.0,0.05643]
[1763423250635,0.0003901,92423.0,92422.0,0.02415]
[1763423251002,0.0003901,92423.0,92422.0,0.002]
[1763423251211,0.0005701,92423.0,92422.0,0.002]
[1763423252077,0.0005701,92423.0,92384.0,0.03228]
[1763423252284,9e-05,92399.0,92378.0,0.03228]
[1763423252708,9e-05,92399.0,92380.0,0.03228]
[1763423253447,9e-05,92399.0,92375.0,0.12614408]
[1763423253856,9e-05,92399.0,92380.0,0.03228]
[1763423254994,9e-05,92399.0,92380.0,0.03328]
[1763423255647,9e-05,92398.0,92380.0,0.001]
[1763423255940,9e-05,92381.0,92380.0,0.00082967]
[1763423257252,9e-05,92381.0,92380.0,0.00126751]
[1763423257556,9e-05,92381.0,92380.0,0.00043784]
[1763423257990,9e-05,92381.0,92380.0,0.00143784]
[1763423258376,9e-05,92381.0,92380.0,0.00043784]
[1763423258814,9e-05,92381.0,92380.0,0.00143784]
[1763423259807,0.00018,92381.0,92380.0,0.00143784]
[1763423260007,0.00018,92381.0,92380.0,0.00126754]
[1763423260418,2.32318,92381.0,92380.0,0.00113625]
[1763423260620,0.323,92378.0,92343.0,0.01617]
[1763423260823,0.323,92374.0,92343.0,0.01630138]
[1763423261201,9e-05,92344.0,92343.0,0.00013138]
[1763423262058,0.01712493,92344.0,92343.0,0.00013138]
[1763423262277,0.03416006,92344.0,92343.0,0.00013138]
[1763423262714,0.05088731,92344.0,92343.0,0.00013138]
[1763423262954,0.03385218,92344.0,92343.0,0.00013138]
[1763423263584,0.03385218,92344.0,92343.0,0.00113138]
[1763423264591,0.04341874,92386.0,92343.0,0.00113138]
[1763423264867,0.03261945,92351.0,92343.0,0.00113138]
[1763423266099,0.04341874,92379.0,92343.0,0.00013138]
[1763423266304,0.04341874,92375.0,92371.0,0.00023027]
[1763423266522,0.323,92373.0,92371.0,0.00023027]
[1763423266729,0.323,92369.0,92340.0,0.01617]
[1763423266936,0.323,92367.0,92340.0,0.01617]
[1763423267140,0.323,92363.0,92340.0,0.01617]
[1763423267432,0.323,92361.0,92340.0,0.01617]
[1763423267659,0.323,92361.0,92340.0,0.01630138]
[1763423268080,0.01703441,92356.0,92340.0,0.01630138]
[1763423269186,0.03228,92355.0,92340.0,0.01630138]
[1763423269823,0.03228,92355.0,92340.0,0.01730138]
[1763423270272,0.03228,92355.0,92340.0,0.01630138]
[1763423270710,0.03228,92355.0,92340.0,0.01730138]
[1763423270909,0.22692588,92375.0,92340.0,0.01730138]
[1763423271116,2.0,92374.0,92340.0,0.01730138]
[1763423271320,2.0,92364.0,92340.0,0.00113138]
[1763423271538,0.03228,92365.0,92340.0,0.00113138]
[1763423271738,2.0,92364.0,92340.0,0.00113138]
[1763423271941,2.0,92374.0,92340.0,0.00113138]
[1763423272286,2.0,92373.0,92363.0,0.0002303]
[1763423272457,2.0,92372.0,92363.0,0.0002303]
[1763423272694,2.0,92373.0,92363.0,0.0002303]
[1763423272898,2.0,92369.0,92363.0,0.0002303]
[1763423273119,0.323,92366.0,92363.0,0.0002303]
[1763423273274,2.323,92364.0,92363.0,0.0002303]
[1763423274060,2.35561849,92364.0,92363.0,0.0002303]
[1763423275333,2.03261849,92364.0,92363.0,0.0002303]
[1763423275769,2.0,92364.0,92363.0,0.0002303]
[1763423275976,2.0,92369.0,92363.0,0.0002303]
[1763423276195,2.0,92369.0,92345.0,0.03164609]
[1763423276400,2.0,92368.0,92345.0,0.03164609]
[1763423277122,2.0,92366.0,92345.0,0.03164609]
[1763423277352,0.323,92363.0,92341.0,0.01617]
[1763423277563,0.323,92363.0,92342.0,0.01299517]
[1763423277772,0.323,92363.0,92355.0,0.00023034]
[1763423278394,0.01604,92356.0,92355.0,0.00023034]
[1763423278576,0.03208,92356.0,92355.0,0.00023034]
[1763423279226,0.03775397,92356.0,92355.0,0.00023034]
[1763423279476,0.05478826,92356.0,92355.0,0.00023034]
[1763423279616,0.07182242,92356.0,92355.0,0.00023034]
[1763423279823,0.05478826,92356.0,92355.0,0.00023034]
[1763423280298,0.03874826,92356.0,92355.0,0.00023034]
[1763423281968,0.05478826,92356.0,92355.0,0.00023034]
[1763423282984,0.07182269,92356.0,92355.0,0.00123034]
[1763423283399,0.07182269,92356.0,92355.0,0.00023034]
[1763423285486,0.05478826,92356.0,92355.0,0.00023034]
[1763423285718,0.07182274,92356.0,92355.0,0.00023034]
[1763423285920,0.05478826,92356.0,92355.0,0.00023034]
[1763423286351,0.03874826,92356.0,92355.0,0.00023034]
[1763423287008,0.02270826,92356.0,92355.0,0.00023034]
[1763423287446,0.00567397,92356.0,92347.0,0.01277179]
[1763423287882,0.00567397,92356.0,92340.0,0.07782546]
[1763423288095,0.00567397,92356.0,92343.0,0.01299502]
[1763423288583,0.00567397,92356.0,92344.0,0.03211]
[1763423288797,0.00567397,92356.0,92345.0,0.01299474]
[1763423289232,0.00567397,92356.0,92355.0,0.001]
[1763423289706,0.00567397,92356.0,92347.0,0.01299446]
[1763423289707,0.00567397,92356.0,92353.0,0.01658]
[1763423290137,0.00567397,92356.0,92355.0,0.02269]
[1763423290577,0.00567397,92356.0,92355.0,0.0548]
[1763423290789,0.00567397,92356.0,92355.0,0.0558]
[1763423291013,0.00567397,92356.0,92355.0,0.03876761]
[1763423291893,0.00567397,92356.0,92355.0,0.03776761]
[1763423292339,0.00567397,92356.0,92355.0,0.05176095]
[1763423292564,0.00567397,92356.0,92355.0,0.08218635]
[1763423293460,0.00567397,92356.0,92355.0,0.08118635]
[1763423293667,0.00567397,92356.0,92355.0,0.08318635]
[1763423294078,0.00567397,92356.0,92355.0,0.09617969]
[1763423294290,0.00567397,92356.0,92355.0,0.05276095]
[1763423294502,0.02270516,92356.0,92355.0,0.03976761]
[1763423294755,0.00567397,92356.0,92355.0,0.04542643]
[1763423294963,0.00567397,92356.0,92355.0,0.04342643]
[1763423295428,0.00567397,92356.0,92355.0,0.12351536]
[1763423295624,0.00567397,92356.0,92355.0,0.04542643]
[1763423295859,0.00567397,92356.0,92355.0,0.04342643]
[1763423296102,0.00567397,92356.0,92355.0,0.05741977]
[1763423296515,0.00567397,92356.0,92355.0,0.09983851]
[1763423296738,0.01707331,92386.0,92356.0,0.04341874]
[1763423296956,0.01707331,92386.0,92385.0,0.02988014]
[1763423297188,0.00146302,92398.0,92385.0,0.06199014]
[1763423297413,0.00146302,92398.0,92397.0,0.07017014]
[1763423297666,0.00146302,92398.0,92397.0,0.11358888]
[1763423297876,0.02488127,92398.0,92397.0,0.11358888]
[1763423298098,0.00713699,92398.0,92397.0,0.11358888]
[1763423298327,0.04179985,92398.0,92397.0,0.07017014]
[1763423298795,0.02416072,92398.0,92397.0,0.07017014]
[1763423299214,0.02416072,92398.0,92397.0,0.07117014]
[1763423299828,0.04198421,92398.0,92397.0,0.07117014]
[1763423300119,0.04198421,92398.0,92397.0,0.01677]
[1763423301202,0.5,92447.0,92397.0,0.06721]
[1763423301410,0.00567397,92398.0,92397.0,0.06821]
[1763423301623,0.01708081,92413.0,92397.0,0.01677]
[1763423301826,0.01708081,92413.0,92412.0,0.0162922]
[1763423302027,0.5,92447.0,92412.0,0.0162922]
[1763423302208,0.01772271,92413.0,92412.0,0.0162922]
[1763423302439,0.00567397,92423.0,92404.0,0.01649]
[1763423303064,0.323,92421.0,92404.0,0.01649]
[1763423303188,0.00567397,92423.0,92405.0,0.0308]
[1763423303885,0.00567397,92423.0,92422.0,0.06226869]
[1763423304410,0.00567397,92423.0,92404.0,0.01649]
[1763423304411,0.00567397,92423.0,92418.0,0.01649]
[1763423304612,0.00567397,92423.0,92422.0,0.02064]
[1763423305761,0.00567397,92423.0,92422.0,0.02164]
[1763423307277,0.00567397,92423.0,92422.0,0.001]
[1763423307868,0.00567397,92423.0,92418.0,0.00046821]
[1763423308021,0.323,92445.0,92418.0,0.00046821]
[1763423308253,0.00567397,92431.0,92418.0,0.00046821]
[1763423308568,0.323,92441.0,92418.0,0.03126821]
[1763423308805,0.00567397,92431.0,92418.0,0.03126821]
[1763423309141,0.323,92437.0,92418.0,0.03226821]
[1763423309343,0.323,92435.0,92418.0,0.03226821]
[1763423310147,0.323,92435.0,92418.0,0.03126821]
[1763423310370,0.323,92443.0,92418.0,0.03126821]
[1763423310574,0.323,92441.0,92418.0,0.03126821]
[1763423310779,0.323,92437.0,92418.0,0.03126821]
[1763423311024,0.00013135,92445.0,92418.0,0.03126821]
[1763423311196,0.323,92443.0,92418.0,0.03126821]
[1763423311419,0.323,92439.0,92418.0,0.03126821]
[1763423311617,2.0,92436.0,92418.0,0.03126821]
[1763423311826,0.00013135,92445.0,92418.0,0.03126821]
[1763423312027,0.323,92441.0,92418.0,0.03126821]
[1763423312429,0.00013135,92445.0,92418.0,0.03126821]
[1763423312653,0.323,92441.0,92418.0,0.03126821]
[1763423312887,0.323,92439.0,92418.0,0.03126821]
[1763423313320,0.323,92439.0,92404.0,0.01649]
[1763423313321,0.323,92433.0,92404.0,0.01649]
[1763423313527,0.323,92429.0,92404.0,0.04761]
[1763423313761,0.03125135,92445.0,92404.0,0.04761]
[1763423313981,0.323,92433.0,92404.0,0.04761]
[1763423314203,0.323,92431.0,92404.0,0.04761]
[1763423314435,0.323,92427.0,92404.0,0.04761]
[1763423314649,0.323,92425.0,92405.0,0.03112]
[1763423315087,0.32289647,92425.0,92405.0,0.03112]
[1763423316123,0.01702268,92421.0,92405.0,0.03112]
[1763423317180,0.01702268,92421.0,92404.0,0.01649]
[1763423318036,0.01702268,92421.0,92405.0,0.03112]
[1763423318435,0.01702277,92417.0,92406.0,0.01298616]
[1763423318658,0.01702277,92417.0,92405.0,0.03112]
[1763423318885,0.01702277,92417.0,92416.0,0.02076713]
[1763423319290,0.01702277,92417.0,92416.0,0.05188713]
[1763423319489,0.05426763,92441.0,92416.0,0.05188713]
[1763423319689,0.00580524,92417.0,92416.0,0.05188713]
[1763423319954,0.00013127,92417.0,92416.0,0.01557]
[1763423320396,0.00580524,92417.0,92416.0,0.01557]
[1763423321306,0.00580524,92417.0,92416.0,0.001]
[1763423322340,0.02282815,92417.0,92407.0,0.03066709]
[1763423322735,0.00580524,92417.0,92407.0,0.03066709]
[1763423322974,0.01702291,92415.0,92404.0,0.01649]
[1763423323511,0.01702291,92415.0,92391.0,0.07804932]
[1763423323723,0.03304291,92415.0,92407.0,0.001]
[1763423324081,0.03304291,92415.0,92384.0,0.07804932]
[1763423324282,0.03304291,92415.0,92385.0,0.08563932]
[1763423324507,0.01702291,92415.0,92404.0,0.001]
[1763423324888,0.01602,92405.0,92404.0,0.001]
[1763423325355,2.37528026,92405.0,92404.0,0.001]
[1763423325589,0.02218,92398.0,92397.0,1e-08]
[1763423325793,0.323,92397.0,92370.0,0.01557]
[1763423326008,0.323,92393.0,92370.0,0.01557]
[1763423326213,0.323,92391.0,92389.0,0.00023021]
[1763423326481,2.34324026,92390.0,92389.0,0.00023021]
[1763423326729,2.0,92388.0,92373.0,0.03112]
[1763423326973,0.35926026,92390.0,92373.0,0.03112]
[1763423326974,0.323,92383.0,92373.0,0.03112]
[1763423327201,0.323,92383.0,92364.0,0.04669]
[1763423327202,0.00986,92374.0,92364.0,0.04669]
[1763423327448,0.00986,92374.0,92366.0,0.01557]
[1763423327889,0.00986,92374.0,92373.0,0.00166897]
[1763423328546,0.323,92387.0,92373.0,0.00166897]
[1763423328763,0.323,92385.0,92366.0,0.01600811]
[1763423328989,0.323,92381.0,92366.0,0.01600811]
[1763423329425,0.323,92381.0,92380.0,0.00146743]
[1763423330079,0.323,92394.0,92380.0,0.00146743]
[1763423330329,0.323,92390.0,92367.0,0.03112]
[1763423330550,0.00616,92398.0,92367.0,0.03112]
[1763423330770,0.323,92393.0,92367.0,0.03112]
[1763423330992,0.323,92391.0,92367.0,0.03112]
[1763423331248,0.323,92391.0,92368.0,0.01299151]
[1763423331564,0.323,92391.0,92369.0,0.03112]
[1763423331769,0.323,92391.0,92370.0,0.01299123]
[1763423332177,0.05419786,92397.0,92370.0,0.01299123]
[1763423332375,0.05419786,92397.0,92371.0,0.03112]
[1763423332659,0.05419786,92397.0,92372.0,0.01299094]
[1763423333097,0.05419786,92397.0,92373.0,0.03112]
[1763423333925,0.323,92395.0,92373.0,0.03112]
[1763423335271,0.05462288,92396.0,92373.0,0.03112]
[1763423335488,0.05419786,92397.0,92389.0,0.00120835]
[1763423335697,0.323,92393.0,92389.0,0.00120835]
[1763423335904,2.51602,92390.0,92389.0,0.00120835]
[1763423336111,2.33902,92390.0,92389.0,0.00120835]
[1763423336329,2.35504,92390.0,92389.0,0.00120835]
[1763423336536,2.37061,92390.0,92389.0,0.00120835]
[1763423336746,2.38763951,92390.0,92389.0,0.00120835]
[1763423338223,2.40466919,92390.0,92389.0,0.00120835]
[1763423339473,2.38864919,92390.0,92389.0,0.00120835]
[1763423340414,2.50713857,92390.0,92389.0,0.00120835]
[1763423340624,2.323,92389.0,92366.0,0.00043811]
[1763423340832,2.34648,92367.0,92366.0,0.00043811]
[1763423341247,2.3613,92367.0,92366.0,0.00043811]
[1763423341458,0.323,92366.0,92347.0,0.01586]
[1763423341710,0.00616,92348.0,92347.0,0.00013138]
[1763423342139,0.00616,92348.0,92347.0,0.00134057]
[1763423342140,0.0358,92348.0,92347.0,0.00134057]
[1763423342350,0.0358,92348.0,92300.0,0.0004]
[1763423342351,0.323,92346.0,92327.0,0.01586]
[1763423342563,0.323,92342.0,92328.0,0.03077]
[1763423342775,0.03693,92348.0,92328.0,0.03077]
[1763423342776,0.00616,92348.0,92328.0,0.03077]
[1763423342994,0.00616,92348.0,92339.0,0.00023039]
[1763423343418,0.00567397,92347.0,92339.0,0.00023039]
[1763423345322,0.01916,92340.0,92339.0,0.00123039]
[1763423346006,0.01916,92346.0,92339.0,0.00023039]
[1763423346007,0.323,92345.0,92339.0,0.00023039]
[1763423346215,0.00567397,92347.0,92339.0,0.00023039]
[1763423346216,0.01916,92340.0,92339.0,0.00023039]
[1763423347074,0.00567397,92347.0,92339.0,0.00023039]
[1763423347295,0.323,92345.0,92339.0,0.00023039]
[1763423348230,0.00567397,92347.0,92344.0,0.02127]
[1763423348439,0.00567397,92347.0,92346.0,0.03713]
[1763423348650,0.00567397,92347.0,92346.0,0.01586]
[1763423349958,0.00567397,92347.0,92346.0,0.01686]
[1763423350168,0.02270877,92347.0,92346.0,0.01686]
[1763423350400,0.02270877,92347.0,92346.0,0.03813]
[1763423350633,0.02270877,92347.0,92346.0,0.0689]
[1763423351473,0.03974345,92347.0,92346.0,0.0689]
[1763423352179,0.323,92366.0,92364.0,0.03713]
[1763423352811,2.0,92369.0,92365.0,0.02127]
[1763423353031,2.0,92376.0,92365.0,0.02127]
[1763423353462,0.323,92375.0,92365.0,0.02127]
[1763423353667,0.323,92373.0,92365.0,0.02127]
[1763423353886,0.37710224,92376.0,92365.0,0.02127]
[1763423354770,0.37710224,92376.0,92365.0,0.05204]
[1763423355185,0.323,92376.0,92365.0,0.05204]
[1763423355393,0.37710224,92376.0,92365.0,0.05204]
[1763423355602,0.03406369,92374.0,92365.0,0.05204]
[1763423356027,0.03406369,92374.0,92366.0,0.03077]
[1763423357074,0.03406369,92374.0,92364.0,0.01586]
[1763423358448,0.05441928,92380.0,92364.0,0.01586]
[1763423358659,0.323,92378.0,92364.0,0.01686]
[1763423359054,0.05489107,92377.0,92364.0,0.01686]
[1763423359855,0.05438134,92379.0,92365.0,0.02988]
[1763423360419,0.0542427,92380.0,92365.0,0.02988]
[1763423360605,0.323,92378.0,92365.0,0.02988]
[1763423361050,0.323,92378.0,92377.0,1e-08]
[1763423361256,0.323,92378.0,92369.0,0.02988]
[1763423361429,0.01703162,92375.0,92369.0,0.02988]
[1763423361848,0.01703162,92375.0,92374.0,1e-08]
[1763423362083,0.01703162,92375.0,92369.0,0.02988]
[1763423362413,0.01703162,92375.0,92364.0,0.01586]
[1763423362781,0.00866,92375.0,92364.0,0.01586]
[1763423363192,0.04118,92375.0,92358.0,0.01586]
[1763423363490,0.00866,92375.0,92358.0,0.01586]
[1763423363690,0.00866,92375.0,92359.0,0.02988]
[1763423364306,0.00866,92375.0,92364.0,0.001]
[1763423364518,0.323,92378.0,92365.0,0.01526]
[1763423364788,0.01057,92384.0,92366.0,0.01299179]
[1763423364972,0.01057,92384.0,92366.0,0.00013131]
[1763423365177,0.01057,92384.0,92367.0,0.02988]
[1763423365623,0.323,92384.0,92367.0,0.02988]
[1763423366679,0.01538,92387.0,92368.0,0.01299151]
[1763423366881,0.323,92385.0,92368.0,0.01299151]
[1763423367096,0.323,92385.0,92369.0,0.02988]
[1763423367283,0.323,92385.0,92384.0,0.02033014]
[1763423367836,0.0002302,92389.0,92379.0,0.02988]
[1763423368240,0.0002302,92389.0,92366.0,0.00013131]
[1763423368444,0.0002302,92389.0,92373.0,0.02988]
[1763423369880,0.35552,92393.0,92373.0,0.02988]
[1763423369881,2.0,92392.0,92373.0,0.02988]
[1763423370241,2.0,92391.0,92373.0,0.02988]
[1763423370674,0.03119,92392.0,92373.0,0.02988]
[1763423372495,0.03119,92392.0,92366.0,0.00013131]
[1763423372689,0.03119,92392.0,92366.0,0.03319131]
[1763423372901,0.01702976,92388.0,92366.0,0.03319131]
[1763423373299,0.01165,92387.0,92366.0,0.03319131]
[1763423374382,0.01702976,92388.0,92386.0,0.0205]
[1763423374613,0.01702976,92388.0,92387.0,0.0205]
[1763423375064,0.01702976,92388.0,92380.0,0.03306]
[1763423375679,0.01702976,92388.0,92387.0,0.0205]
[1763423376145,0.01702976,92388.0,92387.0,0.05356]
[1763423377605,0.01702976,92388.0,92387.0,0.05456]
[1763423379596,0.00616,92401.0,92387.0,0.05456]
[1763423379809,0.00616,92401.0,92388.0,0.03266015]
[1763423380016,0.00616,92401.0,92389.0,0.01346]
[1763423380720,0.05432891,92406.0,92389.0,0.01346]
[1763423380962,0.07036933,92405.0,92389.0,0.01346]
[1763423381205,0.01596,92405.0,92389.0,0.09150932]
[1763423381840,0.01596,92405.0,92390.0,0.03306]
[1763423382050,0.323,92410.0,92390.0,0.03306]
[1763423382274,0.07060893,92409.0,92390.0,0.11110932]
[1763423382483,0.07060893,92409.0,92389.0,0.01346]
[1763423382696,0.05439265,92407.0,92389.0,0.01346]
[1763423382900,0.40837304,92408.0,92389.0,0.01346]
[1763423383717,0.03119,92407.0,92389.0,0.01346]
[1763423384330,0.03119,92407.0,92389.0,0.04652]
[1763423384543,0.01596,92409.0,92390.0,0.01298841]
[1763423384793,0.01596,92409.0,92390.0,0.04604841]
[1763423385019,0.01596,92409.0,92391.0,0.03306]
[1763423385676,0.00023018,92397.0,92391.0,0.11110932]
[1763423385888,0.00023018,92397.0,92396.0,0.0205]
[1763423386097,2.0,92412.0,92396.0,0.0205]
[1763423386325,2.0,92412.0,92397.0,0.03306]
[1763423386528,0.01702706,92409.0,92397.0,0.03306]
[1763423387138,0.01715842,92409.0,92397.0,0.03306]
[1763423387787,0.01715842,92409.0,92408.0,0.06918028]
[1763423388004,0.01715842,92409.0,92408.0,0.06838057]
[1763423388420,0.01715842,92409.0,92408.0,0.03532057]
[1763423388643,0.01715842,92409.0,92408.0,0.01642]
[1763423389281,0.02283239,92409.0,92408.0,0.01742]
[1763423389478,0.02283239,92409.0,92408.0,0.001]
[1763423392099,2.41351239,92409.0,92408.0,0.001]
[1763423392533,2.41351239,92409.0,92383.0,0.01374]
[1763423392534,0.323,92406.0,92383.0,0.01374]
[1763423392753,0.323,92404.0,92383.0,0.01374]
[1763423393112,0.03119,92403.0,92383.0,0.01374]
[1763423393787,0.03119,92403.0,92383.0,0.0468]
[1763423394524,0.03119,92403.0,92384.0,0.03306]
[1763423394731,0.323,92407.0,92384.0,0.03306]
[1763423394929,0.03119,92406.0,92384.0,0.03306]
[1763423395975,0.323,92402.0,92384.0,0.03306]
[1763423396169,0.323,92402.0,92389.0,0.07804932]
[1763423396384,0.323,92402.0,92388.0,0.07804932]
[1763423396628,0.35419,92402.0,92388.0,0.07804932]
[1763423396831,0.323,92402.0,92388.0,0.07804932]
[1763423397034,0.323,92407.0,92401.0,0.03645]
[1763423397240,0.03260074,92404.0,92401.0,0.03645]
[1763423397736,0.03260074,92404.0,92401.0,0.01595]
[1763423397941,0.00023015,92405.0,92395.0,0.07804932]
[1763423398143,0.02053,92402.0,92395.0,0.07804932]
[1763423398343,0.02053,92402.0,92394.0,0.07804932]
[1763423398549,0.00023015,92405.0,92394.0,0.07804932]
[1763423399475,0.00023015,92405.0,92395.0,0.001]
[1763423399950,0.00023015,92405.0,92394.0,0.07804932]
[1763423400182,0.00023015,92405.0,92394.0,0.07904932]
[1763423400389,0.01702581,92403.0,92395.0,0.01298771]
[1763423400652,0.01702581,92403.0,92396.0,0.07804932]
[1763423400894,0.01702581,92403.0,92402.0,0.03632]
[1763423401563,0.01702581,92403.0,92402.0,0.06899]
[1763423402200,0.01702581,92403.0,92402.0,0.01545]
[1763423402414,0.00580533,92409.0,92402.0,0.01545]
[1763423402415,0.0540741,92428.0,92408.0,0.02087]
[1763423402638,0.03259521,92410.0,92408.0,0.02087]
[1763423402925,0.00043776,92428.0,92409.0,0.03267]
[1763423403137,0.03259369,92425.0,92409.0,0.05354]
[1763423403353,0.03259369,92425.0,92402.0,0.09452922]
[1763423403354,0.03259369,92425.0,92424.0,0.01400969]
[1763423404030,2.0,92424.0,92402.0,0.01545]
[1763423404225,0.01548,92418.0,92403.0,0.03267]
[1763423404843,0.01548,92418.0,92394.0,0.01505]
[1763423404844,0.036,92404.0,92394.0,0.01505]
[1763423405214,0.01548,92404.0,92394.0,0.01505]
[1763423405951,0.01702457,92402.0,92394.0,0.01505]
[1763423406133,0.01702457,92402.0,92394.0,0.01605]
[1763423406734,0.03259854,92401.0,92394.0,0.01605]
[1763423406933,0.03259854,92401.0,92394.0,0.01505]
[1763423407971,0.03259854,92401.0,92392.0,0.01545]
[1763423408182,0.03259854,92401.0,92392.0,0.07807922]
[1763423408598,0.03259854,92401.0,92400.0,0.02087]
[1763423408804,0.03259854,92401.0,92394.0,0.001]
[1763423409223,0.03259854,92401.0,92393.0,0.11074922]
[1763423409843,0.03259854,92401.0,92400.0,0.02087]
[1763423410269,0.01702457,92402.0,92400.0,0.13161922]
[1763423410496,0.0496207,92402.0,92401.0,0.04930687]
[1763423410699,0.01702457,92402.0,92401.0,0.06899]
[1763423410904,0.03259454,92407.0,92401.0,0.06899]
[1763423411113,0.03259454,92407.0,92404.0,0.07811293]
[1763423411289,0.03259454,92407.0,92406.0,0.02087]
[1763423411684,0.03259454,92407.0,92406.0,0.05354]
[1763423411881,0.03259454,92407.0,92406.0,0.02087]
[1763423412773,0.03259454,92407.0,92406.0,0.02187]
[1763423414420,0.10285754,92407.0,92406.0,0.001]
[1763423415101,0.10285754,92407.0,92406.0,0.07811219]
[1763423415549,0.07013754,92407.0,92406.0,0.07911219]
[1763423415961,0.07013754,92407.0,92398.0,0.0977036]
[1763423416169,0.04961754,92407.0,92399.0,0.0977036]
[1763423416384,0.017023,92407.0,92406.0,0.03732]
[1763423416820,0.017023,92407.0,92406.0,0.06999]
[1763423417665,0.017023,92407.0,92406.0,0.06899]
[1763423417869,0.034046,92407.0,92406.0,0.06899]
[1763423418927,0.034046,92407.0,92406.0,0.06999]
[1763423419747,0.087836,92407.0,92406.0,0.001]
[1763423420285,0.034046,92407.0,92406.0,0.001]
[1763423420477,0.055536,92407.0,92406.0,0.001]
[1763423421214,0.087836,92407.0,92406.0,0.001]
[1763423421414,0.055536,92407.0,92406.0,0.001]
[1763423422750,0.055436,92407.0,92406.0,0.001]
[1763423423369,0.038513,92407.0,92406.0,0.001]
[1763423423615,0.017023,92407.0,92406.0,0.001]
[1763423423989,0.038513,92407.0,92406.0,0.001]
[1763423424592,2.0,92414.0,92406.0,0.001]
[1763423425007,0.03259709,92407.0,92406.0,0.001]
[1763423425523,0.03259709,92407.0,92406.0,0.05284]
[1763423426497,0.01702343,92407.0,92406.0,0.05284]
[1763423427168,0.01702343,92407.0,92406.0,0.16352976]
[1763423427379,0.03259188,92421.0,92406.0,0.16452976]
[1763423427586,0.03259188,92421.0,92420.0,0.02119]
[1763423427786,2.0,92456.0,92420.0,0.09931426]
[1763423428004,0.03258877,92429.0,92427.0,0.03699]
[1763423428455,2.0,92444.0,92428.0,0.02119]
[1763423428634,0.323,92441.0,92428.0,0.03165]
[1763423428807,0.35558852,92443.0,92428.0,0.03165]
[1763423428808,2.0,92438.0,92428.0,0.03165]
[1763423429212,2.323,92438.0,92437.0,0.02119]
[1763423429639,2.323,92438.0,92437.0,0.05284]
[1763423429845,2.323,92438.0,92437.0,0.02119]
[1763423430053,2.323,92438.0,92427.0,0.0158]
[1763423430230,0.323,92435.0,92428.0,0.001]
[1763423430422,2.0,92432.0,92428.0,0.001]
[1763423430827,2.01702127,92432.0,92427.0,0.0158]
[1763423431027,2.0,92431.0,92427.0,0.0158]
[1763423431756,2.0,92431.0,92427.0,0.04704]
[1763423431950,2.0,92431.0,92430.0,0.02015]
[1763423432189,2.0,92431.0,92424.0,0.0158]
[1763423432896,2.0,92431.0,92425.0,0.01599]
[1763423433900,2.0,92431.0,92424.0,0.0158]
[1763423434097,0.323,92430.0,92420.0,0.01599]
[1763423434438,2.0,92424.0,92412.0,0.0158]
[1763423434638,0.323,92423.0,92415.0,0.01599]
[1763423434849,2.0,92422.0,92415.0,0.01599]
[1763423435256,2.0,92421.0,92415.0,0.01599]
[1763423435642,2.0,92421.0,92415.0,0.01642776]
[1763423435856,0.013,92416.0,92415.0,0.00043776]
[1763423436062,2.013,92416.0,92415.0,0.00043776]
[1763423437011,2.013,92416.0,92415.0,0.00143776]
[1763423437400,2.013,92416.0,92415.0,0.00043776]
[1763423437808,2.013,92416.0,92415.0,0.05899443]
[1763423438422,2.026,92416.0,92415.0,0.05899443]
[1763423439247,2.013,92416.0,92415.0,0.05899443]
[1763423439849,2.013,92416.0,92415.0,0.00043776]
[1763423440246,2.013,92416.0,92415.0,0.05899545]
[1763423440247,2.026,92416.0,92415.0,0.05899545]
[1763423440646,2.05859709,92416.0,92415.0,0.05899545]
[1763423441281,2.07562135,92416.0,92415.0,0.05899545]
[1763423441488,2.05859709,92416.0,92415.0,0.00043776]
[1763423441685,2.04559709,92416.0,92415.0,0.00043776]
[1763423441901,2.03259709,92416.0,92415.0,0.00043776]
[1763423442120,2.36859709,92416.0,92415.0,0.0589896]
[1763423444169,2.36859709,92416.0,92415.0,0.00043776]
[1763423444393,2.38562151,92416.0,92415.0,0.00043776]
[1763423445871,2.39862151,92416.0,92415.0,0.00043776]
[1763423446088,2.50229089,92416.0,92415.0,0.00043776]
[1763423446306,2.39862151,92416.0,92415.0,0.00043776]
[1763423448791,2.18536325,92416.0,92415.0,0.00043776]
[1763423448998,2.21796466,92416.0,92415.0,0.00043776]
[1763423453586,2.20496466,92416.0,92415.0,0.00043776]
[1763423454481,0.323,92413.0,92388.0,0.05855184]
[1763423454840,0.323,92407.0,92388.0,0.00013136]
[1763423455031,0.323,92403.0,92388.0,0.00013136]
[1763423455247,0.323,92401.0,92388.0,0.00013136]
[1763423455452,1.83233883,92398.0,92388.0,0.00013136]
[1763423455598,1.83233883,92394.0,92388.0,0.00013136]
[1763423456232,0.323,92391.0,92388.0,0.00013136]
[1763423456433,0.323,92389.0,92388.0,0.00013136]
[1763423456636,2.15533883,92389.0,92388.0,0.00013136]
[1763423457635,2.323,92389.0,92388.0,0.00013136]
[1763423457963,2.323,92389.0,92388.0,0.00113136]
[1763423458366,2.323,92389.0,92388.0,0.00013136]
[1763423458895,2.34002715,92389.0,92388.0,0.00113136]
[1763423461868,0.34002715,92389.0,92388.0,0.00113136]
[1763423462311,2.34002715,92389.0,92388.0,0.00113136]
[1763423462706,2.34002715,92389.0,92388.0,0.05966184]
[1763423463202,2.34002715,92389.0,92388.0,0.00013136]
[1763423463411,2.34002715,92389.0,92388.0,0.05866184]